bitfinex-derivatives/quotes_ETHF0:USTF0_20250309
["timestamp","ask_amount","ask_price","bid_price","bid_amount"]
[1741561270294,3.2078,2016.1,2015.8,0.00745379]
[1741561270593,4.19989,2016.1,2015.8,0.00745379]
[1741561270793,3.2078,2016.1,2015.8,0.00745379]
[1741561270990,0.99219,2015.9,2015.8,0.00745379]
[1741561271198,0.99219,2015.9,2015.0,0.8678]
[1741561271199,0.9924,2015.5,2014.9,1.80876]
[1741561271487,3.2078,2015.0,2014.5,0.4968]
[1741561271687,3.2078,2015.0,2014.2,3.2078]
[1741561271894,3.2078,2014.7,2014.6,0.9928]
[1741561272193,3.2078,2015.2,2014.5,3.2078]
[1741561272392,3.2078,2014.8,2014.6,6.48697061]
[1741561272701,3.2078,2014.8,2014.4,0.00745379]
[1741561272702,3.2078,2014.8,2014.4,12.00090818]
[1741561272893,3.2078,2014.8,2014.4,1.00038379]
[1741561273091,3.2078,2014.5,2014.4,0.00745379]
[1741561273285,3.2078,2014.5,2013.9,0.4968]
[1741561273483,3.2078,2014.0,2013.7,0.4968]
[1741561273896,3.2078,2014.0,2013.7,1.49004]
[1741561274088,3.2078,2014.0,2013.8,0.99322]
[1741561274283,3.2078,2014.3,2013.7,0.4968]
[1741561274583,3.2078,2014.5,2013.8,14.74654089]
[1741561274782,3.2078,2014.5,2014.1,3.2078]
[1741561275092,3.2078,2014.8,2014.0,3.2078]
[1741561275295,3.2078,2014.7,2014.2,6.52411202]
[1741561275484,3.2078,2014.4,2014.0,3.72]
[1741561275687,3.2078,2014.4,2013.9,1.83057]
[1741561275688,3.2078,2014.2,2014.1,0.99304]
[1741561275890,3.2078,2014.2,2013.7,3.71205379]
[1741561275891,3.2078,2014.2,2013.8,0.9932]
[1741561276187,6.21516379,2014.9,2014.0,0.4968]
[1741561276384,3.2078,2014.2,2014.0,0.99311]
[1741561276585,4.20085,2014.2,2014.0,0.4968]
[1741561276796,3.2078,2014.2,2014.0,0.4968]
[1741561276995,0.9931,2014.1,2013.7,0.50425379]
[1741561277192,3.2078,2014.2,2013.7,0.50425379]
[1741561277492,3.2078,2013.9,2013.7,0.00745379]
[1741561277897,3.2078,2014.2,2013.8,0.99322]
[1741561278095,3.2078,2013.9,2013.7,0.00745379]
[1741561278396,3.2078,2013.9,2013.8,0.99322]
[1741561278585,4.5186,2014.4,2014.3,0.99298]
[1741561278586,0.8236,2014.4,2014.3,0.99298]
[1741561278790,0.8236,2014.4,2014.2,0.99302]
[1741561278989,4.50475379,2014.9,2013.7,3.21525379]
[1741561278990,3.21525379,2014.9,2014.5,0.99288]
[1741561279188,3.79e-06,2014.9,2014.8,0.99273]
[1741561279496,4.63367211,2015.0,2014.9,0.99268]
[1741561279696,4.63367211,2015.0,2014.9,4.20048]
[1741561279697,2.65182211,2015.0,2014.9,4.20048]
[1741561279891,2.65182211,2015.0,2014.9,18.20670071]
[1741561280292,2.65182211,2015.0,2014.9,7.87748]
[1741561280486,2.65182211,2015.0,2014.9,11.87748]
[1741561280695,2.65182211,2015.0,2014.9,6.32922071]
[1741561281001,2.65182211,2015.0,2014.7,3.71205379]
[1741561281002,5.85962211,2015.0,2014.7,1.49703379]
[1741561281197,5.85962211,2015.0,2014.7,0.50425379]
[1741561281394,0.99298,2014.3,2013.7,2.949]
[1741561281700,3.2078,2013.8,2013.6,0.4968]
[1741561282696,3.2078,2013.8,2013.5,0.00745379]
[1741561282991,0.99332,2013.6,2013.5,0.00745379]
[1741561283495,0.99342,2013.5,2013.0,0.99362]
[1741561283699,3.2078,2013.5,2013.4,0.99342]
[1741561284095,7.875,2013.8,2013.1,8.93845818]
[1741561284295,3.21525379,2013.9,2013.3,3.2078]
[1741561284502,0.00745379,2013.9,2013.8,0.99322]
[1741561284801,3.79e-06,2013.9,2013.8,0.99322]
[1741561285099,3.79e-06,2013.9,2013.8,11.51075921]
[1741561285299,3.79e-06,2013.9,2013.8,17.13381188]
[1741561285598,3.79e-06,2013.9,2013.8,13.13381188]
[1741561285805,3.79e-06,2013.9,2013.8,17.13381188]
[1741561285994,3.79e-06,2013.9,2013.8,20.08281188]
[1741561286198,8.24615833,2014.7,2013.8,41.36759188]
[1741561286499,5.47148833,2014.7,2014.6,4.20063]
[1741561286697,5.47148833,2014.7,2014.6,7.83763]
[1741561286903,5.47148833,2014.7,2014.6,4.62983]
[1741561287098,4.14739833,2014.7,2014.6,8.62983]
[1741561287301,1.24292833,2014.7,2014.6,20.78499918]
[1741561287493,1.24292833,2014.7,2014.6,11.22718255]
[1741561287707,0.06961833,2014.7,2014.6,11.22718255]
[1741561288089,3.27741833,2014.7,2014.5,0.99283]
[1741561288304,3.27741833,2014.7,2014.4,0.50425379]
[1741561288697,0.00745379,2014.9,2014.5,14.95525326]
[1741561289001,3.2078,2015.3,2014.8,3.2078]
[1741561289197,3.2078,2015.0,2014.5,6.56221446]
[1741561289400,3.2078,2015.3,2014.4,0.50425379]
[1741561289604,3.2078,2015.3,2014.9,5.30036807]
[1741561289903,4.8432,2015.6,2014.8,9.31161]
[1741561290100,0.00745379,2015.3,2015.1,0.99258]
[1741561290293,0.00745379,2015.3,2015.1,0.99253]
[1741561290497,3.2078,2015.2,2014.9,6.54511652]
[1741561290796,3.2078,2015.2,2014.5,0.4968]
[1741561291009,3.2078,2014.6,2014.5,0.4968]
[1741561291306,3.2078,2014.6,2014.5,0.99288]
[1741561291906,0.8716,2014.9,2014.7,0.99277]
[1741561292104,0.8716,2014.9,2014.4,0.50425379]
[1741561292295,0.8716,2014.9,2014.5,6.43968581]
[1741561292501,3.21525379,2015.3,2014.7,3.2078]
[1741561292705,0.00745379,2015.3,2015.2,0.99253]
[1741561293297,0.00745379,2015.3,2015.2,4.99253]
[1741561293505,3.79e-06,2015.3,2015.2,17.34343523]
[1741561294406,6.59726207,2015.7,2015.6,0.99233]
[1741561294597,2.68184207,2015.7,2015.6,4.20013]
[1741561294801,2.07e-06,2015.7,2015.6,20.46870153]
[1741561295706,2.07e-06,2015.7,2015.6,16.46870153]
[1741561296005,2.07e-06,2015.7,2015.6,16.96550153]
[1741561296401,2.07e-06,2015.7,2015.6,1.48913]
[1741561296706,2.07e-06,2015.7,2015.6,0.99233]
[1741561297209,2.07e-06,2015.7,2015.6,18.24891751]
[1741561297408,3.79e-06,2015.9,2015.8,0.99224]
[1741561297709,4.0848,2016.9,2015.9,2.48043]
[1741561297910,5.07651,2016.9,2016.2,0.99202]
[1741561298309,3.2078,2016.6,2016.1,3.623]
[1741561298500,3.2078,2016.4,2016.2,0.99201]
[1741561298704,3.2078,2016.4,2016.1,3.623]
[1741561298903,4.19974,2016.4,2015.8,23.26321]
[1741561299203,3.2078,2016.1,2015.8,22.271]
[1741561299504,4.0051,2016.5,2015.8,22.271]
[1741561299709,3.2078,2016.2,2015.9,0.99216]
[1741561299900,3.2078,2016.2,2015.7,0.4968]
[1741561300106,3.2078,2015.9,2015.7,0.4968]
[1741561300612,8.0978,2015.9,2015.5,0.99234]
[1741561300908,8.0978,2015.9,2015.5,0.99238]
[1741561301107,5.693,2016.1,2015.5,2.48097]
[1741561301302,5.693,2016.1,2015.4,0.00745379]
[1741561301507,3.2078,2015.8,2015.4,0.00745379]
[1741561302111,3.2078,2015.8,2015.7,0.99229]
[1741561302306,3.2078,2015.8,2015.4,0.00745379]
[1741561302603,3.2078,2015.5,2015.4,0.00745379]
[1741561303110,3.2078,2015.5,2014.9,0.4968]
[1741561303111,0.99255,2015.2,2014.9,0.4968]
[1741561303311,3.2078,2015.0,2014.3,3.609]
[1741561303607,3.2078,2015.0,2014.9,0.99268]
[1741561303811,3.2078,2015.3,2014.5,6.1568]
[1741561304012,3.2078,2015.2,2014.4,0.4968]
[1741561304208,1.00005379,2015.1,2014.7,0.00745379]
[1741561304504,3.2078,2014.9,2014.7,0.00745379]
[1741561304704,0.00745379,2015.1,2014.7,0.00745379]
[1741561304905,0.00745379,2015.1,2015.0,0.99263]
[1741561305113,4.0845,2015.6,2015.5,0.99238]
[1741561305407,0.7986,2016.0,2015.5,1.48917]
[1741561305408,3.2078,2015.9,2015.5,1.48917]
[1741561305599,3.2078,2015.9,2015.5,0.4968]
[1741561306305,3.21525379,2015.9,2015.6,0.99231]
[1741561306506,3.21525379,2015.9,2015.5,0.4968]
[1741561306713,3.21525379,2015.9,2015.5,1.48915]
[1741561306907,4.20749379,2015.9,2015.5,0.4968]
[1741561307206,3.2078,2015.6,2014.7,3.21525379]
[1741561307509,4.0227,2015.5,2014.9,6.30049878]
[1741561307813,4.0227,2015.5,2014.8,0.4968]
[1741561307814,3.2078,2015.2,2014.8,0.4968]
[1741561308005,3.2078,2014.9,2014.8,0.4968]
[1741561308209,3.2078,2014.9,2014.2,0.4968]
[1741561308509,3.2078,2014.6,2014.5,0.99288]
[1741561309410,0.8705,2014.9,2014.2,2.97931]
[1741561309411,0.00745379,2014.8,2014.7,0.99277]
[1741561309815,0.00745379,2014.8,2014.5,0.99286]
[1741561310008,0.00745379,2014.8,2014.7,0.99278]
[1741561310406,3.2078,2015.3,2014.7,4.20058]
[1741561310806,3.2078,2015.3,2014.6,2.48202]
[1741561311014,3.2078,2015.3,2014.9,0.99264]
[1741561311310,4.0572,2015.6,2015.5,0.99238]
[1741561311516,4.9458,2015.9,2015.5,0.99238]
[1741561311700,0.00745379,2015.8,2015.3,0.00745379]
[1741561311905,3.2078,2015.6,2015.3,0.99992379]
[1741561312217,0.00745379,2015.8,2015.5,0.99238]
[1741561312514,0.00745379,2015.8,2015.3,0.00745379]
[1741561312816,3.2078,2015.6,2015.4,0.99239]
[1741561313110,3.2078,2015.6,2015.5,0.99238]
[1741561313414,0.00745379,2015.8,2015.6,0.99233]
[1741561313813,0.00745379,2015.8,2015.7,0.99229]
[1741561314307,3.79e-06,2015.8,2015.7,0.99229]
[1741561314514,3.79e-06,2015.8,2015.7,1.48909]
[1741561314813,9.58310013,2016.1,2015.7,1.48909]
[1741561314814,6.91529634,2016.1,2016.0,0.99214]
[1741561315006,0.99176,2016.8,2016.0,7.73294]
[1741561315208,3.2078,2016.9,2016.3,3.2078]
[1741561315509,3.2078,2017.2,2016.6,3.2078]
[1741561315817,14.55379185,2017.2,2016.6,3.2078]
[1741561316017,0.00481576,2017.1,2016.7,0.50345379]
[1741561316218,0.00481576,2017.1,2016.8,0.99172]
[1741561316408,0.00481576,2017.1,2016.7,6.35339145]
[1741561316609,0.00481576,2017.1,2016.7,0.00745379]
[1741561316909,0.00481576,2017.1,2017.0,0.99165]
[1741561317511,0.00481576,2017.1,2017.0,10.7456432]
[1741561317726,0.00481576,2017.1,2017.0,0.99165]
[1741561317911,8.27638642,2017.5,2017.4,1.48745]
[1741561318114,3.98947706,2017.5,2017.4,4.69525]
[1741561318416,3.98947706,2017.5,2017.4,11.20506226]
[1741561318615,17.00323491,2018.1,2017.7,0.9913]
[1741561318810,17.00323491,2018.1,2017.7,4.1991]
[1741561319010,19.95515991,2017.8,2017.7,4.1991]
[1741561319215,19.95515991,2017.8,2017.7,0.9913]
[1741561319412,4.84117332,2017.8,2017.7,0.9913]
[1741561319916,4.84117332,2017.8,2017.6,0.99132]
[1741561320122,4.84117332,2017.7,2017.6,0.99132]
[1741561320318,4.84117332,2018.3,2017.5,3.509]
[1741561320517,4.84117332,2018.3,2017.7,3.2078]
[1741561320714,0.99117,2018.0,2017.5,3.509]
[1741561320912,3.2078,2018.1,2017.5,3.509]
[1741561321116,3.2078,2017.8,2017.5,3.509]
[1741561321307,12.93897332,2018.2,2017.9,0.99118]
[1741561321715,4.84117332,2018.1,2017.8,0.99122]
[1741561321916,4.84117332,2018.1,2017.5,3.509]
[1741561322223,4.84117332,2018.0,2017.6,0.99133]
[1741561322408,4.19901,2017.9,2017.4,3.96943513]
[1741561322616,4.19903,2017.9,2017.4,3.96943513]
[1741561322814,5.83245332,2017.8,2017.4,0.50343513]
[1741561323019,3.2078,2017.5,2017.4,0.50343513]
[1741561323519,4.84117332,2017.5,2017.4,1.49488513]
[1741561323720,8.04897332,2017.5,2017.4,0.00743513]
[1741561324017,8.0978,2017.8,2017.7,0.9913]
[1741561324222,8.04897332,2017.8,2017.7,0.9913]
[1741561324418,4.8486,2018.2,2017.5,3.2078]
[1741561324619,3.2078,2018.5,2018.0,0.99114]
[1741561324825,3.2078,2018.8,2018.5,0.99089]
[1741561325019,6.75352332,2018.8,2018.7,0.99081]
[1741561325222,3.54572332,2018.7,2018.4,0.00743513]
[1741561325419,3.2078,2018.6,2018.4,0.00743513]
[1741561325624,3.54572332,2018.8,2018.4,0.00743513]
[1741561325920,1.5811,2018.9,2018.4,0.00743513]
[1741561325921,6.75352332,2018.7,2018.4,0.00743513]
[1741561326223,3.2078,2018.6,2018.5,0.99089]
[1741561326410,3.54572332,2018.8,2018.4,0.00743513]
[1741561326614,3.54572332,2018.8,2018.7,0.99081]
[1741561327010,3.54572332,2018.8,2018.5,3.943]
[1741561327225,3.54572332,2018.8,2018.7,0.99081]
[1741561327418,3.54572332,2018.7,2018.6,6.49097103]
[1741561327625,3.2078,2018.9,2018.4,0.00743513]
[1741561327920,3.2078,2018.5,2018.4,0.00743513]
[1741561328127,4.19871,2018.5,2018.4,0.00743513]
[1741561328320,6.75352332,2018.5,2018.4,0.00743513]
[1741561329324,6.75352332,2018.5,2017.8,3.2078]
[1741561329325,0.99108,2018.2,2017.8,3.7038]
[1741561329622,3.2078,2017.9,2017.7,0.496]
[1741561329819,3.2078,2018.2,2017.7,0.496]
[1741561330017,3.2078,2017.9,2017.8,0.99125]
[1741561330326,3.2078,2017.9,2017.6,0.496]
[1741561330520,0.99162,2017.1,2016.7,0.496]
[1741561330824,3.2078,2017.0,2016.1,5.68793]
[1741561331121,3.2078,2016.5,2016.2,0.496]
[1741561331320,3.2078,2016.5,2016.0,0.496]
[1741561331521,2.46007734,2016.4,2016.0,0.496]
[1741561331728,2.46007734,2016.4,2016.1,0.99206]
[1741561332025,0.00743513,2016.5,2016.4,0.99194]
[1741561332323,2.46751247,2016.5,2016.4,0.99194]
[1741561333423,2.46751247,2016.5,2016.3,0.99197]
[1741561333723,5.66787734,2016.4,2016.0,0.50343513]
[1741561334030,2.46007734,2016.3,2016.0,0.00743513]
[1741561334227,4.19989,2016.1,2016.0,0.00743513]
[1741561334428,2.46007734,2016.2,2016.0,0.00743513]
[1741561334618,8.0978,2016.4,2016.0,0.00743513]
[1741561334619,2.46007734,2016.3,2016.0,0.00743513]
[1741561335232,2.46007734,2016.2,2016.1,0.99209]
[1741561335433,2.46007734,2016.3,2016.1,0.99209]
[1741561335633,2.46007734,2016.3,2016.2,0.99204]
[1741561335922,2.46007734,2016.2,2016.1,0.496]
[1741561336128,2.46007734,2016.4,2016.1,1.48809]
[1741561336329,2.46007734,2016.4,2016.1,0.99207]
[1741561336522,2.46007734,2016.3,2016.1,0.496]
[1741561336836,2.46007734,2016.4,2016.1,1.48807]
[1741561337032,2.46007734,2016.4,2016.2,0.99201]
[1741561337225,0.00743513,2016.5,2016.2,9.70772769]
[1741561337423,5.66787734,2016.4,2016.2,12.20620253]
[1741561337627,2.46007734,2016.4,2016.2,0.99203]
[1741561337825,0.00743513,2016.5,2016.4,0.99194]
[1741561338024,2.46007734,2016.4,2016.3,12.91486925]
[1741561338336,2.46007734,2016.4,2016.3,0.99196]
[1741561338522,2.46007734,2016.4,2016.2,4.19984]
[1741561338721,2.46007734,2016.3,2016.2,4.19984]
[1741561338922,2.46007734,2016.4,2016.1,0.496]
[1741561339119,2.46007734,2016.4,2016.0,0.00743513]
[1741561339420,2.46007734,2016.3,2016.2,0.99204]
[1741561339619,2.46007734,2016.4,2016.1,7.00665852]
[1741561339829,2.46007734,2016.4,2016.1,0.496]
[1741561340028,2.46007734,2016.3,2016.1,0.496]
[1741561340223,2.46007734,2016.4,2016.1,0.496]
[1741561340628,2.46007734,2016.3,2016.2,0.99202]
[1741561340929,2.46007734,2016.4,2016.1,0.496]
[1741561341126,2.46007734,2016.4,2016.1,1.48807]
[1741561341325,2.46007734,2016.3,2016.1,1.48807]
[1741561341524,2.46007734,2016.4,2016.1,0.496]
[1741561341831,2.46007734,2016.4,2016.1,1.48806]
[1741561342028,2.46007734,2016.3,2016.2,0.99204]
[1741561342329,0.00743513,2016.5,2016.4,0.99194]
[1741561343236,3.2078,2017.5,2017.1,0.9916]
[1741561343532,2.46007734,2017.3,2017.2,0.99155]
[1741561343829,3.2078,2017.5,2016.8,3.361]
[1741561343830,2.46007734,2017.4,2017.1,0.99159]
[1741561344222,2.46007734,2017.4,2017.3,0.9915]
[1741561344426,3.2078,2017.9,2017.4,0.9914]
[1741561344629,0.00737294,2017.5,2017.4,0.9914]
[1741561344829,0.00737294,2017.5,2017.2,0.496]
[1741561345020,2.46007734,2017.4,2017.2,0.496]
[1741561345224,2.46007734,2017.3,2017.2,0.496]
[1741561345525,2.46007734,2017.3,2017.1,0.496]
[1741561345834,2.46007734,2017.2,2017.1,0.496]
[1741561346132,3.2078,2017.3,2017.0,0.00743513]
[1741561346332,5.66787734,2017.3,2017.0,0.00743513]
[1741561346526,2.46007734,2017.2,2017.1,0.99158]
[1741561346727,0.00737294,2017.5,2017.1,6.2968264]
[1741561346935,2.46745028,2017.5,2017.3,0.99147]
[1741561347232,5.66787734,2017.4,2017.2,3.343]
[1741561347629,3.2078,2017.4,2017.2,3.343]
[1741561347829,2.46007734,2017.4,2017.3,0.99147]
[1741561348029,0.00737294,2017.5,2017.3,0.99147]
[1741561348335,2.46007734,2017.4,2017.2,4.33453]
[1741561348534,2.46745028,2017.5,2017.4,0.99145]
[1741561349934,2.46745028,2017.5,2017.0,3.21523513]
[1741561350126,2.46007734,2017.4,2017.0,4.20686513]
[1741561350325,2.46007734,2017.4,2017.3,0.9915]
[1741561350521,0.00737294,2017.5,2017.4,0.99145]
[1741561350925,1.5488,2018.1,2017.4,10.55735242]
[1741561351232,1.29153734,2018.0,2017.8,0.99123]
[1741561351531,1.29153734,2018.0,2017.6,5.68607]
[1741561351727,1.29153734,2018.0,2017.9,7.52773161]
[1741561351923,3.2078,2018.1,2017.9,6.53653161]
[1741561352128,3.2078,2018.1,2017.7,9.17832707]
[1741561352427,1.8813,2018.5,2018.0,5.21622177]
[1741561352628,1.29153734,2018.4,2018.3,0.99101]
[1741561352834,1.29153734,2018.7,2018.5,0.99091]
[1741561353131,1.29153734,2018.7,2018.6,0.99086]
[1741561353331,3.2078,2019.1,2018.6,6.33988206]
[1741561353632,2.985,2019.3,2018.2,6.5308]
[1741561353633,3.2078,2018.8,2018.2,6.5308]
[1741561353825,3.2078,2018.8,2018.4,0.99092]
[1741561354022,1.29153734,2018.7,2018.3,12.19625047]
[1741561354229,3.2078,2018.5,2018.2,3.2078]
[1741561354422,3.2078,2018.5,2018.0,0.00743513]
[1741561354630,0.99111,2018.1,2018.0,0.00743513]
[1741561354837,7.875,2018.1,2017.5,0.496]
[1741561355033,3.2078,2017.9,2017.4,0.496]
[1741561355330,3.2078,2017.6,2017.3,0.99149]
[1741561355638,0.29953734,2017.5,2017.3,0.99147]
[1741561355831,0.29953734,2017.4,2017.3,0.99147]
[1741561356128,0.29953734,2017.5,2017.2,0.00743513]
[1741561356532,0.29953734,2017.4,2017.2,0.00743513]
[1741561356726,4.1993,2017.3,2017.2,0.00743513]
[1741561356931,3.50733734,2017.3,2016.8,0.496]
[1741561357123,3.2078,2017.0,2016.3,6.5058]
[1741561357327,3.2078,2016.7,2016.4,0.496]
[1741561357523,3.2078,2016.7,2016.4,1.48793]
[1741561357732,0.29953734,2016.6,2016.2,0.496]
[1741561357933,3.2078,2016.4,2016.2,0.496]
[1741561358235,3.2078,2016.4,2016.2,0.50343513]
[1741561358438,0.29953734,2016.3,2016.2,0.50343513]
[1741561359433,0.29953734,2016.3,2016.2,0.99947513]
[1741561359630,0.29953734,2016.3,2016.2,0.00743513]
[1741561359933,0.99204,2016.2,2016.1,0.496]
[1741561360132,0.99219,2015.9,2015.6,0.4968]
[1741561360337,3.2078,2015.8,2015.7,0.4968]
[1741561360534,3.2078,2015.8,2015.6,0.4968]
[1741561360735,0.29953734,2015.7,2015.6,0.4968]
[1741561360931,0.29953734,2015.7,2015.3,0.4968]
[1741561361236,1.29187734,2015.6,2015.4,0.00743513]
[1741561361437,0.29953734,2015.5,2015.4,0.00743513]
[1741561361733,0.29953734,2015.7,2015.4,0.00743513]
[1741561361941,0.29953734,2015.6,2015.4,0.00743513]
[1741561362131,0.29953734,2015.7,2015.4,0.99984513]
[1741561362331,0.29953734,2015.7,2015.4,0.00743513]
[1741561362638,0.29953734,2015.6,2015.4,0.00743513]
[1741561362839,6.12676,2015.8,2015.4,0.00743513]
[1741561363034,0.99229,2015.7,2015.4,0.00743513]
[1741561363539,6.12674,2015.8,2015.4,0.00743513]
[1741561363839,5.1345,2015.8,2015.4,0.99984513]
[1741561364035,5.1345,2015.8,2015.4,0.00743513]
[1741561364241,3.2078,2015.8,2015.5,0.99235]
[1741561364638,3.2078,2015.8,2015.4,0.00743513]
[1741561364834,5.1052,2016.2,2015.6,6.33300323]
[1741561365230,5.1052,2016.2,2015.9,0.99214]
[1741561365532,5.1052,2016.2,2015.9,0.99217]
[1741561365931,5.1052,2016.2,2015.6,5.19205086]
[1741561365932,5.1052,2016.2,2015.5,3.2078]
[1741561366132,0.9921,2016.1,2015.4,0.00743513]
[1741561366333,5.1052,2016.2,2015.4,0.00743513]
[1741561366637,4.19999,2015.9,2015.4,0.00743513]
[1741561366841,3.2078,2015.6,2015.4,0.00743513]
[1741561367140,8.15,2015.5,2014.8,0.4968]
[1741561367343,3.2078,2015.1,2014.6,0.4968]
[1741561367938,0.29953734,2015.0,2014.6,0.4968]
[1741561368244,0.29953734,2015.1,2015.0,0.99263]
[1741561368441,1.9202,2015.5,2014.8,3.2078]
[1741561368646,1.9202,2015.5,2015.0,3.2078]
[1741561368647,0.29953734,2015.4,2015.0,3.2078]
[1741561368943,0.29953734,2015.4,2015.3,0.99248]
[1741561369147,0.29953734,2015.4,2015.1,6.51326099]
[1741561369337,0.29953734,2015.3,2015.2,0.99253]
[1741561369740,0.29953734,2015.3,2015.1,6.51326099]
[1741561369939,0.29953734,2015.2,2014.7,7.98555]
[1741561370248,3.50733734,2015.4,2014.8,0.99268]
[1741561370444,3.2078,2015.0,2014.6,0.50423513]
[1741561370941,3.2078,2014.8,2014.6,0.50423513]
[1741561371147,4.20055,2014.8,2014.6,0.00743513]
[1741561371336,0.29953734,2014.7,2014.6,0.00743513]
[1741561371933,0.29953734,2014.7,2014.6,1.00026513]
[1741561372142,3.2078,2015.7,2015.4,0.99243]
[1741561372344,3.2078,2015.7,2014.9,3.2078]
[1741561372737,3.2078,2015.7,2015.2,0.99251]
[1741561372942,3.2078,2015.7,2015.4,0.99243]
[1741561373446,3.2078,2015.7,2015.0,8.3823]
[1741561373447,3.2078,2015.7,2015.0,5.1745]
[1741561373741,4.2001,2015.7,2015.1,0.99255]
[1741561374042,4.2001,2015.7,2015.0,5.1745]
[1741561374043,3.2078,2015.4,2015.0,1.9145]
[1741561374240,3.2078,2015.4,2014.8,0.4968]
[1741561374241,3.2078,2015.2,2014.8,0.4968]
[1741561374446,3.2078,2014.9,2014.6,0.00743513]
[1741561374749,3.2078,2014.9,2014.7,0.99275]
[1741561374943,3.2078,2014.9,2014.6,1.00025513]
[1741561375139,3.2078,2014.9,2014.6,1.00023513]
[1741561375345,3.2078,2014.9,2014.7,0.99274]
[1741561375542,4.89,2015.2,2014.6,3.21523513]
[1741561375736,4.89,2015.2,2014.7,11.62539928]
[1741561376041,3.2078,2015.1,2014.7,6.84114015]
[1741561376345,4.89,2015.2,2015.1,0.99258]
[1741561376643,3.21523513,2015.5,2014.8,1.4895]
[1741561376644,0.99249,2015.3,2014.8,1.4895]
[1741561377036,3.21523513,2015.5,2014.8,0.9927]
[1741561377237,0.99255,2015.2,2014.7,4.23976]
[1741561377438,3.21523513,2015.5,2014.6,3.71203513]
[1741561377439,0.99265,2015.0,2014.6,0.50423513]
[1741561377649,3.2078,2014.8,2014.6,0.00743513]
[1741561378047,0.99278,2014.7,2014.6,0.00743513]
[1741561378348,7.2078,2014.8,2013.9,3.7046]
[1741561378549,3.2078,2014.4,2014.2,0.99301]
[1741561379244,3.2078,2014.4,2013.8,25.23675]
[1741561379245,8.20075,2014.4,2014.0,0.99311]
[1741561379445,5.0479,2014.3,2014.2,0.99302]
[1741561379644,5.0479,2014.3,2013.6,3.7046]
[1741561379850,5.0479,2014.3,2013.7,2.48319]
[1741561380050,5.0479,2014.3,2014.1,0.99305]
[1741561380245,5.0479,2014.3,2013.6,3.7046]
[1741561380451,1.8089,2014.3,2013.6,3.7046]
[1741561380741,1.8089,2014.3,2013.7,6.31742835]
[1741561380742,0.00743513,2014.2,2013.7,6.31742835]
[1741561380943,4.20088,2014.1,2013.7,1.00067513]
[1741561381243,3.2078,2013.8,2013.7,0.00743513]
[1741561381439,3.2078,2013.8,2012.9,5.69193]
[1741561381639,3.2078,2013.4,2013.2,0.99348]
[1741561381843,3.2078,2013.4,2012.9,3.7046]
[1741561382049,3.2078,2013.4,2012.9,3.2078]
[1741561382346,4.20125,2013.4,2012.9,3.2078]
[1741561382547,4.20127,2013.4,2012.9,4.20145]
[1741561382749,3.2078,2013.4,2012.9,3.21275674]
[1741561383140,3.2078,2013.4,2013.1,0.99352]
[1741561383649,3.2078,2013.4,2012.9,3.21275674]
[1741561384044,3.2078,2013.4,2013.0,0.9936]
[1741561384250,0.99348,2013.3,2012.9,4.20639674]
[1741561384447,3.2078,2013.4,2013.3,0.99347]
[1741561384644,4.89,2013.5,2013.4,0.99342]
[1741561384848,4.89,2013.5,2013.1,2.48393]
[1741561384849,6.1928,2014.0,2013.2,3.2078]
[1741561385052,0.00743513,2014.2,2013.4,6.43591997]
[1741561385258,0.00743513,2014.2,2013.9,0.99314]
[1741561385552,0.00743513,2014.2,2013.7,0.99325]
[1741561385553,3.2078,2014.0,2013.7,0.99325]
[1741561385739,3.2078,2014.0,2013.2,6.9156]
[1741561385940,3.2078,2013.6,2013.2,0.4968]
[1741561386141,0.99344,2013.4,2012.9,4.20958674]
[1741561386344,8.0978,2013.3,2012.9,0.00495674]
[1741561386546,3.2078,2013.0,2012.2,5.1701]
[1741561386848,4.20159,2012.7,2012.3,0.99395]
[1741561387147,3.2078,2012.4,2012.1,0.99406]
[1741561387553,3.2078,2012.4,2012.2,0.99399]
[1741561387755,4.89,2012.5,2012.4,0.99391]
[1741561387950,4.89745379,2012.5,2011.9,11.84366406]
[1741561388251,4.89745379,2012.5,2012.4,0.99391]
[1741561388452,4.89745379,2012.5,2012.2,6.3609416]
[1741561388749,4.89745379,2012.5,2012.0,3.2078]
[1741561389149,3.2078,2012.3,2012.0,3.2078]
[1741561389350,3.2078,2012.3,2011.8,5.5397]
[1741561389556,3.2078,2012.3,2012.1,0.99406]
[1741561389755,3.2078,2012.3,2012.2,0.99401]
[1741561389960,3.2078,2012.4,2012.2,0.99401]
[1741561390553,4.89,2012.3,2011.8,0.4976]
[1741561390750,3.2078,2011.9,2011.8,0.4976]
[1741561391254,9.9296,2012.2,2011.8,0.99416]
[1741561391450,3.2078,2011.9,2011.6,0.4976]
[1741561391644,3.2078,2011.9,2011.2,0.19696257]
[1741561391645,4.89,2011.8,2011.2,0.19696257]
[1741561391841,3.2078,2011.6,2011.3,0.99442]
[1741561392040,3.2078,2011.6,2011.2,0.19696257]
[1741561392650,2.985,2011.9,2011.5,0.99436]
[1741561392651,4.89,2011.8,2011.5,0.99436]
[1741561392852,1.8318,2012.2,2011.6,3.2078]
[1741561393157,3.2078,2012.1,2011.6,3.2078]
[1741561393348,3.2078,2011.8,2011.2,3.40476257]
[1741561393649,6.3938,2012.1,2011.3,5.69395]
[1741561393853,3.2078,2011.8,2011.3,3.2078]
[1741561394051,3.2078,2011.8,2011.2,0.19696257]
[1741561394052,0.99446,2011.3,2011.2,0.19696257]
[1741561394253,0.99446,2011.3,2010.2,3.2078]
[1741561394254,0.99459,2011.1,2010.6,0.99479]
[1741561394453,0.99459,2011.1,2010.9,0.99465]
[1741561394454,4.89,2011.0,2010.9,0.99465]
[1741561394856,0.00745379,2011.2,2010.7,6.46820868]
[1741561395055,0.00745379,2011.2,2011.1,0.99456]
[1741561395254,0.00745379,2011.2,2010.9,0.99463]
[1741561395458,3.2078,2011.0,2010.5,3.2078]
[1741561395662,4.89,2011.1,2010.5,3.2078]
[1741561395953,4.89,2011.1,2011.0,0.9946]
[1741561396156,4.89,2011.1,2010.8,3.2078]